Cogmind - Beta 11 X7 *** ADVENTURER MODE // 2021.10.06 @ 11:20:55 Player: arctifire Result: Self-destructed Performance ------------- Evolutions (1) 500 Regions Visited (4) 800 Robots Destroyed (31) 155 Value Destroyed (827) 827 Prototype IDs (23) 460 Alien Tech Used (0) 0 Bonus (-790) -790 TOTAL SCORE: 1952 Bonus ------- Aligned with FarCom 300 Friendly Fire -1090 Cogmind --------- Core Integrity 201/400 Matter 275/300 Energy 49/265 System Corruption 6% Temperature Cool (0) Movement Walking (360) Ox3 Location -9/Exiles Parts ------- > --- POWER (1) -------- Reinforced Ion Engine > --- PROPULSION (2) --- Aluminum Leg > --- UTILITY (4) ------ Heat Sink Small Storage Unit Salvage Targeting Computer > --- WEAPON (2) ------- YOLO Cannon > --- INVENTORY (8) ---- Light Ion Engine Improved Ion Engine Reinforced Ion Engine Aluminum Leg Aluminum Leg Supersonic Drone Bay (1/1) Peak State ------------ > --- POWER ------------ Reinforced Ion Engine > --- PROPULSION ------- Aluminum Leg Aluminum Leg > --- UTILITY ---------- Heat Sink Small Storage Unit Salvage Targeting Computer > --- WEAPON ----------- YOLO Cannon > --- INVENTORY -------- Light Ion Engine Improved Ion Engine Reinforced Ion Engine Aluminum Leg Aluminum Leg Supersonic Drone Bay [Rating: 29] Favorites ----------- Power Reinforced Ion Engine Engine Reinforced Ion Engine Propulsion Aluminum Leg Leg Aluminum Leg Utility Small Storage Unit Device Heat Sink Storage Small Storage Unit Processor Salvage Targeting Computer Weapon Small Laser Energy Gun Small Laser Energy Cannon Latent Energy Streamer Ballistic Gun Light Assault Rifle Build | -11 -10 -9 -9 -9 ------- Run | Scr Mat Mat Min Exi Slots Evolved 2 | . . 2 . . Power . | . . . . . Propulsion . | . . . . . Utility 2 | . . 2 . . Weapon . | . . . . . Parts Attached 17 | . 1 8 5 3 Power 2 | . . 1 1 . Engine 2 | . . 1 1 . Core . | . . . . . Reactor . | . . . . . Propulsion 7 | . . 4 2 1 Treads . | . . . . . Leg 7 | . . 4 2 1 Wheel . | . . . . . Hover . | . . . . . Flight . | . . . . . Utility 2 | . . 1 1 . Device 1 | . . . 1 . Storage . | . . . . . Processor 1 | . . 1 . . Hackware . | . . . . . Protection . | . . . . . Artifact . | . . . . . Weapon 6 | . 1 2 1 2 Energy Gun 3 | . . 2 1 . Energy Cannon 2 | . . . . 2 Ballistic Gun 1 | . 1 . . . Ballistic Cannon . | . . . . . Launcher . | . . . . . Special Weapon . | . . . . . Impact Weapon . | . . . . . Slashing Weapon . | . . . . . Piercing Weapon . | . . . . . Special Melee Weapon . | . . . . . Unidentified Prototypes . | . . . . . Parts Lost 7 | . 1 5 . 1 Power . | . . . . . Propulsion 4 | . . 3 . 1 Utility . | . . . . . Weapon 3 | . 1 2 . . Highest Loss Streak 2 | . 1 2 . 1 Average Slot Usage (%) 80 | . 83 71 87 78 Engine 11 | . 14 11 11 11 Leg 22 | . 28 20 22 21 Device 7 | . . . 10 11 Storage 11 | . 14 11 11 11 Processor 8 | . . 6 11 11 Energy Gun 10 | . . 13 22 4 Energy Cannon 3 | . . . . 8 Ballistic Gun 4 | . 26 7 . . Naked Turns . | . . . . . Heaviest Build 26 | 13 13 17 18 26 Greatest Support 20 | 20 20 20 20 20 Greatest Overweight (x) 1 | . . 1 . 1 Average Overweight (x) . | . . . . . Largest Inventory Capacity 8 | 8 8 8 8 8 Average Capacity 8 | 8 8 8 8 8 Most Carried 8 | 6 7 8 8 8 Average Carried 6 | 6 5 4 8 7 Final Capacity 8 | 8 8 8 8 8 Final Carried 8 | 6 4 8 8 6 Class Distribution -------------------- 68% | Scavenger-Mutant 31% | Mutant Dominant Class ---------------- Mutant | -10/Materials Mutant | -9/Materials Scavenger-Mutant | -9/Mines Scavenger-Mutant | -9/Exiles Resources | -11 -10 -9 -9 -9 ----------- Run | Scr Mat Mat Min Exi Matter Collected 519 | 200 129 140 50 . Remotely . | . . . . . Salvage Created 1240 | . 368 526 212 134 Parts 65 | . 21 32 12 . Haulers Intercepted . | . . . . . Recyclers Shooed . | . . . . . Parts Field Recycled . | . . . . . Retrieved Matter . | . . . . . Parts Self-Destructed . | . . . . . Prevented . | . . . . . Kills | -11 -10 -9 -9 -9 ------- Run | Scr Mat Mat Min Exi Combat Hostiles Destroyed 32 | . 9 14 7 2 Guns 30 | . 9 14 7 . AOE 1 | . . . . 1 Classes Destroyed 7 | . 1 4 1 1 Recycler 1 | . . 1 . . Swarmer 11 | . . 7 4 . Grunt 16 | . 9 5 2 . Brawler 1 | . . . 1 . Duelist 1 | . . 1 . . Sentry 1 | . . 1 . . Assembled 7 | . . . . 7 Best Kill Streak 4 | . 3 4 4 2 Combat Bots Only 4 | . 3 4 4 2 Max Kills in Single Turn 4 | . 1 1 1 4 Gunslinging . | . . . . . Exploded 1 | . . . . 1 Melee . | . . . . . Uniques/NPCs Destroyed . | . . . . . Combat | -11 -10 -9 -9 -9 -------- Run | Scr Mat Mat Min Exi Damage Taken 1329 | . 301 722 111 195 Core 254 | . 55 137 40 22 Absorbed by Shields . | . . . . . Core Remaining (%) 89 | 100 78 . . . Volleys Fired 102 | . 36 45 16 5 Largest 2 | . 2 2 2 1 Hottest 100 | . 40 80 80 100 Shots Fired 184 | . 62 85 32 5 Gun 179 | . 62 85 32 . Cannon 5 | . . . . 5 Launcher . | . . . . . Special . | . . . . . Kinetic 103 | . 62 41 . . Thermal 79 | . . 44 32 3 Explosive . | . . . . . Electromagnetic 2 | . . . . 2 Robot Hit Streak 30 | . 14 30 9 3 Robot Miss Streak 2 | . 2 2 1 2 Penetration Max . | . . . . . Secondary Targets 8 | . 1 4 3 . Max Gunslinging Chain 1 | . 1 1 1 . Shots Hit Robots 146 | . 52 66 25 3 Core Hits 65 | . 21 26 11 7 Critical Kills . | . . . . . Critical Parts Destroyed . | . . . . . Critical Strikes . | . . . . . Melee Attacks . | . . . . . Impact . | . . . . . Slashing . | . . . . . Piercing . | . . . . . Sneak Attacks . | . . . . . Combat Hostiles . | . . . . . Follow-up Attacks . | . . . . . Damage Inflicted 2219 | . 568 702 247 702 Guns 1515 | . 568 702 245 . Cannons 36 | . . . . 36 Explosions 666 | . . . . 666 Melee . | . . . . . Ramming 2 | . . . 2 . Kinetic 913 | . 568 345 . . Thermal 653 | . . 357 245 51 Explosive . | . . . . . Electromagnetic 651 | . . . . 651 Impact . | . . . . . Slashing . | . . . . . Piercing . | . . . . . Highest Corruption 6 | . . . . 6 Average Corruption 5 | . . . . 5 Corruption Purged . | . . . . . Effects 1 | . . . . 1 Message Errors 1 | . . . . 1 Overload Shots . | . . . . . Overflow Damage 43 | . . . . 43 Projectiles . | . . . . . Explosions 43 | . . . . 43 Melee . | . . . . . Knockbacks . | . . . . . Impact . | . . . . . Kinetic . | . . . . . Secondary . | . . . . . Self-Inflicted Damage . | . . . . . Shots . | . . . . . Rammed . | . . . . . Targets Rammed 1 | . . . 1 . Kicked 1 | . . . 1 . Crushed . | . . . . . Highest Temperature 303 | . 15 303 189 2 Average Temperature 77 | . 7 91 95 1 Received Heat Transfer 576 | . 222 312 42 . Effects 3 | . . 3 . . Energy Bleed 1 | . . 1 . . Interference 2 | . . 2 . . Siege Activations . | . . . . . Robots Corrupted 2 | . . . . 2 Combat Hostiles 1 | . . . . 1 Parts Fried . | . . . . . Impact Corruptions . | . . . . . Robots Melted . | . . . . . Combat Hostiles . | . . . . . Parts Melted 3 | . . 2 1 . Heat Transferred 1495 | . . 825 550 120 Parts Sabotaged . | . . . . . Parts Stolen . | . . . . . Parts Stripped . | . . . . . Power Chain Reactions . | . . . . . Missiles Intercepted . | . . . . . Latent Energy Used 400 | . . . . 400 LE Corruption 6 | . . . . 6 Alert | -11 -10 -9 -9 -9 ------- Run | Scr Mat Mat Min Exi Peak Influence 394 | . 230 394 133 . Initial 82 | . . 82 63 . Average 131 | . 88 200 102 . Maximum Alert Level 1 | . 1 1 . . Low Security (%) 89 | 100 92 72 100 . Level 1 10 | . 7 27 . . Level 2 . | . . . . . Level 3 . | . . . . . Level 4 . | . . . . . Level 5 . | . . . . . High Security . | . . . . . Max Security . | . . . . . Squads Dispatched 2 | . 1 1 . . Investigation 1 | . 1 . . . Extermination . | . . . . . Reinforcement 1 | . . 1 . . Assault . | . . . . . Garrison . | . . . . . Intercept . | . . . . . Construction Impeded . | . . . . . Haulers Reinforced . | . . . . . Active Scanning Responses . | . . . . . Cargo Convoy Interrupts . | . . . . . Stealth | -11 -10 -9 -9 -9 --------- Run | Scr Mat Mat Min Exi Distress Signals 4 | . 2 2 . . Communications Jammed . | . . . . . Distress Signals . | . . . . . Times Spotted 43 | . 13 20 7 3 Peak Tracking Total 9 | . 6 9 4 3 Tactical Retreats 1 | . . 1 . . Traps | -11 -10 -9 -9 -9 ------- Run | Scr Mat Mat Min Exi Traps Triggered 1 | . 1 . . . Indirectly . | . . . . . Trap Hack Attempts . | . . . . . Triggered . | . . . . . Disarmed . | . . . . . Reprogrammed . | . . . . . Reused . | . . . . . Traps Extracted . | . . . . . Installed . | . . . . . Triggered . | . . . . . Machines | -11 -10 -9 -9 -9 ---------- Run | Scr Mat Mat Min Exi Machines Disabled 4 | . . . . 4 Max in Single Turn 2 | . . . . 2 Machines Sabotaged . | . . . . . Garrisons Compromised . | . . . . . Overloaded Fab Kills . | . . . . . Fab Network Shutdowns . | . . . . . Hacking | -11 -10 -9 -9 -9 --------- Run | Scr Mat Mat Min Exi Machines Accessed 2 | . . 1 . 1 Terminals 1 | . . 1 . . Fabricators . | . . . . . Repair Stations . | . . . . . Recycling Units . | . . . . . Scanalyzers . | . . . . . Garrison Access . | . . . . . Total Hacks 3 | . . 2 . 1 Successful 2 | . . 1 . 1 Failed 1 | . . 1 . . Catastrophic . | . . . . . Database Lockouts . | . . . . . Manual 3 | . . 2 . 1 Terminals 2 | . . 2 . . Fabricators . | . . . . . Repair Stations . | . . . . . Recycling Units . | . . . . . Scanalyzers . | . . . . . Garrison Access . | . . . . . Terminal Hacks 2 | . . 1 . 1 Branch Access Points 1 | . . 1 . . EX-Prototype ID Bank 1 | . . . . 1 Fabricator Hacks . | . . . . . Repair Station Hacks . | . . . . . Recycling Unit Hacks . | . . . . . Scanalyzer . | . . . . . Garrison Access Hacks . | . . . . . Unauthorized Hacks . | . . . . . Terminals . | . . . . . Fabricators . | . . . . . Repair Stations . | . . . . . Recycling Units . | . . . . . Scanalyzers . | . . . . . Garrison Access . | . . . . . Data Cores Recovered . | . . . . . Used . | . . . . . Hacking Detections . | . . . . . Full Trace Events . | . . . . . Feedback Events . | . . . . . Feedback Blocked . | . . . . . Robot Schematics Acquired . | . . . . . Robots Built . | . . . . . Matter . | . . . . . Time . | . . . . . Total Robot Build Rating . | . . . . . Part Schematics Acquired . | . . . . . Parts Built . | . . . . . Matter . | . . . . . Time . | . . . . . Total Part Build Rating . | . . . . . Parts Repaired . | . . . . . Time . | . . . . . Parts Recycled . | . . . . . Recycled Matter . | . . . . . Retrieved Matter . | . . . . . Retrieved Components . | . . . . . Parts Scanalyzed . | . . . . . Part Schematics Acquired . | . . . . . Parts Damaged . | . . . . . Bothacking | -11 -10 -9 -9 -9 ------------ Run | Scr Mat Mat Min Exi Used RIF Installer . | . . . . . Robots Hacked . | . . . . . Non-combat . | . . . . . Combat . | . . . . . Robot Hacks Applied . | . . . . . Relay Couplers Released . | . . . . . Robots Rewired . | . . . . . Allies Hacked . | . . . . . Hacks Repelled . | . . . . . Allies | -11 -10 -9 -9 -9 -------- Run | Scr Mat Mat Min Exi Total Allies . | . . . . . Largest Group . | . . . . . Highest-Rated Group . | . . . . . Highest-Rated Ally . | . . . . . Total Orders . | . . . . . Ally Attacks . | . . . . . Total Damage . | . . . . . Kills . | . . . . . Allies Corrupted . | . . . . . Allies Melted . | . . . . . Intel | -11 -10 -9 -9 -9 ------- Run | Scr Mat Mat Min Exi Robot Analysis Total . | . . . . . Derelict Logs Recovered 1 | . . . 1 . Drone Launches . | . . . . . Drone Recoveries . | . . . . . Exploration | -11 -10 -9 -9 -9 ------------- Run | Scr Mat Mat Min Exi Turns Passed 2499 | 4 296 515 741 943 Spaces Moved 1517 | 4 157 288 557 511 Core . | . . . . . Treads . | . . . . . Legs 1517 | 4 157 288 557 511 Wheels . | . . . . . Hover . | . . . . . Flight . | . . . . . Fastest Speed 120 | 120 120 120 120 120 Average Speed 139 | 120 120 121 120 177 Slowest Speed 200 | 120 120 200 120 200 Overloaded Moves . | . . . . . Propulsion Burnouts . | . . . . . Robots Hopped . | . . . . . Cave-ins Triggered . | . . . . . Exploration Rate (%) 44 | 2 30 22 91 78 Regions Visited 4 Branch Regions 2 Pre-discovered Areas 1 | . . . 1 . Known Exits Taken 1 | . . 1 . . Unknown Exits Taken 3 | 1 1 . 1 . Scrap Searched 2 | . . . 2 . Spaces Dug . | . . . . . Terrain Destroyed 50 | . . . . 50 Melee . | . . . . . Projectile . | . . . . . AOE 50 | . . . . 50 Terrain Rammed . | . . . . . Walls Destroyed . | . . . . . Machines Disabled . | . . . . . Actions | -11 -10 -9 -9 -9 --------- Run | Scr Mat Mat Min Exi Total 1721 | 3 210 371 599 538 Wait 63 | . 10 25 17 11 Move 1513 | 3 156 287 556 511 Hop . | . . . . . Pick Up 11 | . 3 6 . 2 Fast Attach 4 | . . 2 1 1 Attach 6 | . 1 4 . 1 Detach . | . . . . . Swap 7 | . . 2 4 1 Drop 14 | . 4 . 4 6 Fire 102 | . 36 45 16 5 Melee . | . . . . . Ram . | . . . . . Kick 1 | . . . 1 . Crush . | . . . . . Escape Stasis . | . . . . . Rewire . | . . . . . Trap . | . . . . . Miscellaneous . | . . . . . Route ------- -11/Scrapyard -10/Materials -9/Materials -9/Mines (discovered 3 exits: [*Mat x2] / *Exi) -9/Exiles History --------- Turn | Location | Event 1 | -11/Scrapyard | Discovered new exit (range 1) 5 | -11/Scrapyard | Entered Materials 287 | -10/Materials | Discovered new exit (range 10) 301 | -10/Materials | Entered another Materials area 301 | -9/Materials | Evolved 2 slots: Utility x2 305 | -9/Materials | Build established: Mutant 459 | -9/Materials | Identified exit to Mines 816 | -9/Materials | Entered Mines 860 | -9/Mines | Learned location of Zion (-6) 975 | -9/Mines | Discovered new exit (range 9) 1128 | -9/Mines | Build established: Scavenger-Mutant 1227 | -9/Mines | Received a Rocket Launcher from a helpful Derelict 1228 | -9/Mines | Found a hidden stash of uninstalled traps 1535 | -9/Mines | Discovered new exit (range 5) 1549 | -9/Mines | Deemed a non-threat by the Exiles lab entrance 1550 | -9/Mines | Discovered new exit (range 5) 1557 | -9/Mines | Entered Exiles 1587 | -9/Exiles | Met 8R-AWN 1610 | -9/Exiles | Met EX-HEX 1659 | -9/Exiles | Met EX-BIN 1682 | -9/Exiles | Aligned with FarCom system 1683 | -9/Exiles | Given EX-Vault access code 1719 | -9/Exiles | Opened EX-Vault 1733 | -9/Exiles | Found Latent Energy Streamer 1746 | -9/Exiles | Found Supersonic Drone Bay 1751 | -9/Exiles | Found YOLO Cannon 1794 | -9/Exiles | Warned to stay clear of 0b10 Research branches 1862 | -9/Exiles | Met EX-DEC 1937 | -9/Exiles | Visited The Gauntlet 2469 | -9/Exiles | Attacked by the Exiles 2500 | -9/Exiles | Self-destructed Last Messages --------------- 02469_ as-70153 system terminally corrupted. 02469_ EXILES: Hostile robot within lab perimeter. Defensive protocols time, folks! 02470_ as-58682 system terminally corrupted. 02473_ Machine disabled. 02473_ as-72229 destroyed. 02480_ Penetrated by HV Slug. 02480_ HV Slug penetrates Wall. 02480_ Penetrated by HV Slug. 02480_ Dropped Latent Energy Streamer. 02482_ Penetrated by HV Slug. 02488_ A&N 02491_ Critical hit (Destroy). 02491_ Aluminum Leg destroyed. 02491_ Penetrated by HV Slug. 02495_ HV Slug penetrates Assembled Analyzer. 02495_ Assembled Analyzer disabled. 02495_ HV Slug penetrates Assembled Analyzer. 02498_ Penetrated by HV Slug. Map ----- +----------------------------------------------------+ | ????# #?#"""""""#????????????????????????????? | | ???## ###"" """"#????????????????????????????? | | ???#" """"#????????????????????????????? | | ???#" """#????????????????????????????? | | ???#" """#????????????????????????????? | | ???#" """#????????????????????????????? | | ???#" """#????????????????????????????? | | ???#" """#????????????????????????????? | | ???## """""???????????????????????????? | | ????# """##???????????????????????????? | | ????#" "X" """"????????????????????????????? | | ????#" """ #????????????????????????????? | | ????#" """""""""#????????????????????????????? | | ???##" ###########????????????????????????????? | | ??##"" #??????????????????????????????????????? | | ###"" #??????????????????????????????????????? | | """"" ##?????????????????????????????????????? | | " "" ###??###########??????????????????????? | | " ##;;#"""""""""##?????????????????????? | | " """ """"##????????????????????? | | "" " #????????????????????? | | " """#????????????????????? | | "a"#???????????#####????? | | " "##?????????##" #????? | | ""###???????#" #????? | | """""" @ "#??????##" ##???? | | ######""" #????### ###?? | | ##????#####""" ?# ### | | #?????????##""" #" | | ???????????#"""" | | ??????????##"" g ## | | #####??####"""" #### | | # ####""" ""#?#"""""## | | """" ""##?#######? | | ;#####?????????? | | ;; #????????????? | | ;; #????????????? | | " "" % ; ##????????????? | | ""## ##""" " " " ; %%%%%% ;# ?????????????? | | ""#### ######""" "" ;; ""####??????????????? | | "##??# #????###""""#"";;;;;"###?????????????????? | | "#???# #??????###### ##???????????????????? | | ##???! ??????????????# ##?????????????????????? | | #???#" ???????????????????????????????????????? | | ????#" ???????????????????????????????????????? | | ?????!!""!"??????????????????????????????????????? | | ?????######??????????????????????????????????????? | | ?????????????????????????????????????????????????? | | ?????????????????????????????????????????????????? | | ?????????????????????????????????????????????????? | +----------------------------------------------------+ Best States ------------- Heat Dissipation 38 Energy Generation 12 Energy Capacity 265 Matter Stores 300 Matter Capacity 300 Sight Range 16 Terrain Scan Density 10 Resistance: KI 20 Resistance: TH 20 Resistance: EX 20 Resistance: EM 20 Resistance: I 20 Resistance: S 20 Resistance: P 20 Evasion (%) 55 Salvage Targeting 1 Offensive Hacking 10 Item Schematics ----------------- None Robot Schematics ------------------ None Fabricated ------------ Nothing Alien Tech Used ----------------- None Achievements -------------- None Challenges ------------ None Game ------ Seed ArchitectZioniteInverter Manual? 0 Play Time 00:14:48 Cumulative 30.3 hours Start 2021.10.06 @ 11:07:17 End 2021.10.06 @ 11:20:55 Sessions 1 Manual Loads 0 Difficulty Adventurer Special Mode None Game No. 36 Rogue 5 Adventurer 25 Explorer 6 Win Type - Total 0 Types 0/0/0/0/0/0/0/0/0 Lore% 21 Gallery% 44 Achievement% 55 Wizard Run 0 Options --------- ASCII 0 Keyboard 0 Movement Arrows Keybinds 0 Fullscreen 1 Font 18/SmallcapsGlow Map View 76x50 Tactical HUD 1 Map Filters NONE Filters NONE Steam 1 RUN: f73765f0-2a30-4be6-b57d-fb687e0cc24b